Workbook

Sheet Introduction
A1: Introduction et instructions pour le plan financier simplifié
A2: Cet outil est destiné à préparer des projections financières simples, avec deux particularités: 1) Être progressif avec plusieurs onglets, te permettant de ne réfléchir qu'à un bloc à la fois; 2) Être utilisé soit pour un projet déterminé dans le temps (un début et une fin) ou pour la création d'une entreprise, que ce soit une association, un collectif ou encore une activité entrepreneuriale. Cette deuxième utilisation commence par le projet d'implantation et éventuellement la phase "pilote" et ajoute ensuite l'aspect de fonctionnement durant la première année, afin de vérifier la viabilité et la trésorerie.
A3: Chaque onglet contient un seul tableau éditable de 10 lignes, que tu peux remplir avec tes informations. Ils sont construits pour ne garder que l'essentiel. Un deuxième tableau, non éditable est prérempli avec des exemples d'éléments que tu peux utiliser pour le nom des lignes du premier tableau, pour te faciliter l'édition; cependant, rien ne t'empêche de donner tes propres définitions. Chaque onglet contient aussi un bouton pour copier le tableau éditable, afin que tu puisses, par exemple le coller dans un document texte (Word, LibreOffice ou autre).
A4: Les onglets sont organisés en commençant avant les éventuelles recettes, puis les dépenses pour la partie du projet suivis des investissements et du financement. Un onglet "Résumé" concentre les totaux des premiers onglets et effectue quelques calculs. Ensuite viennent les onglets concernant les projections pour la première année d'exercice, dans le cas d'une organisation ou entreprise.
A6: Recettes: produits des ventes, moins les charges variables liées aux volumes des ventes, tels que des billets, des repas, des objets, etc.
A7: Personnel: frais et charges liés au personnel interne du projet ou de l'organisation.
A8: Infrastructure: charges liées à l'infrastructure telles que les loyers ou location, aménagements, la maintenance d'équipements, etc.
A9: Fonctionnement: frais liés au fonctionnement courant tels que l'administratif, les frais de bureau, des abonnements, du petit matériel, etc.
A10: Transports: frais et charges liées au transport et aux défraiements des bénévoles, etc.
A11: Communication: tous les frais liés à la communication, tels que la réalisation d'affiches, de brochures, des annonces, des publicités et des services de tiers pour le graphisme et le site internet, etc.
A12: Investissements: coût d'achats uniques, généralement pour l'infrastructure, tels que des machines, des équipements informatiques, des véhicules, etc.
A13: Financement: autres entrées financières, telles des subventions, des dons, des fonds propres, des prestations offertes, la valorisation de l'effort bénévole, etc.
A14: Résumé: Résumé des totaux des tableaux précédents et consolidation de la trésorerie
A15: Projections An 1: jonction de tous les tableaux des recettes au financement, avec le report des valeurs initiales plus 12 colonnes mensuelles pour introduire les chiffres des projections. Diverses lignes intermédiaires sont calculées, afin de suivre l'évolution de la trésorerie.
A16: Important: Les valeurs positives présentées en noir ou vert représentent des rentrées ou des avoirs financiers, les valeurs en rouge, négatives, représentent des sorties ou des manques financiers. Toutes les valeurs doivent être écrites sans le signe - , lorsqu'il s'agit de sorties financières, tels de des coûts ou des paiements, elles seront automatiquement converties en négatif, avec le signe - et montrées en rouge.
A17: Toutes les feuilles sont protégées, pour éviter les petites erreurs de manipulation. Elles peuvent être déprotégées car il n'y a aucun mot de passe. Les macros doivent être autorisées pour certaines actions.

Sheet Recettes
A1: Instructions pour les recettes des prestations Ce tableau te permet d'informer jusqu'à 10 de tes principales prestations, éléments de recettes et de coûts. Pour chacune d'entre eux: 1) Choisis dans la première colonne du premier tableau une des prestations suggérées ou écris ta propre définition; (Indique aussi l'unité, pour faciliter la compréhension) 2) Informe la quantité produite / vendue durant le projet; 3) Informe son prix de vente unitaire; 4) Dans le 2ème tableau, indique seulement les coûts de production unitaires. Les deux colonnes de la recette totale et du coût total sont calculées automatiquement. | F1: Ce bouton copie le tableau en mémoire, pour l'insérer dans un autre document, par exemple texte.
A3: Recettes variables des prestations (unité) | B3: Quantité | C3: Prix unitaire | D3: Recette totale | F3: Exemples
D4: =B4*C4 -> 0
D5: 0 | F5: Billets
D6: 0 | F6: Repas
D7: 0 | F7: Boissons
D8: 0 | F8: Souvenirs
D9: 0 | F9: Habits
D10: 0 | F10: Meubles
D11: 0 | F11: Autres services
D12: 0 | F12: Autres produits
D13: 0
A14: Total: | D14: =SUM(D4:D13) -> 0
A16: Coûts variables des prestations (unité) | B16: Quantité | C16: Coût unitaire | D16: Coût total
A17: =IF(A4="","",A4) ->  | B17: =IF(B4="",0,B4) -> 0 | D17: =B17*C17 -> 0
A18: =IF(A5="","",A5) ->  | B18: =IF(B5="",0,B5) -> 0 | D18: =B18*C18 -> 0
B19: 0 | D19: 0
B20: 0 | D20: 0
B21: 0 | D21: 0
B22: 0 | D22: 0
B23: 0 | D23: 0
B24: 0 | D24: 0
B25: 0 | D25: 0
B26: 0 | D26: 0
A27: Total: | D27: =SUM(D17:D26) -> 0
A56: Marge positive ou déficit: | E56: =D14-D27 -> 0

Sheet Personnel
A1: Instructions pour les frais de personnel Ce tableau te permet d'informer jusqu'à 10 de tes principaux éléments de frais de personnel, les plus coûteux. Pour chacun d'entre eux: 1) Choisis dans la première colonne un des éléments suggérés ou écris ta propre définition; (Indique aussi l'unité, pour faciliter la compréhension) 2) Informe la quantité nécessaire durant le projet, par exemple en EPT pour les salairesl; 3) Informe son coût unitaire, le cas échéant avec les charges salariales; 4) La colonne du coût total est calculée automatiquement. Le total des frais de personne est calculé automatiquement. * Le bénévolat peut être valorisé comme une dépense dans les frais de personnel et sera équilibré automatiquement par un même montant dans le financement, considéré comme un don. Dans certains cas, il peut être ainsi considéré dans les fonds propres. | F1: Ce bouton copie le tableau en mémoire, pour l'insérer dans un autre document, par exemple texte.
A3: Frais de personnel | B3: Quantité | C3: Coût unitaire | D3: Coût total | F3: Exemples
D4: =B4*C4 -> 0
D5: =B5*C5 -> 0 | F5: Salaires / honoraires
D6: 0 | F6: Charges salariales
D7: 0 | F7: Défraiements
D8: 0 | F8: Hébergements
D9: 0 | F9: Notes de frais
D10: 0 | F10: Assurances spéciales
D11: 0
D12: 0
A13: Heures de bénévolat* | D13: 0
A14: Total: | D14: =SUM(D4:D13) -> 0

Sheet Infrastructure
A1: Instructions pour les coûts d'infrastructure Ce tableau te permet d'informer jusqu'à 10 de tes principaux éléments d'infrastructure, les plus coûteux. Pour chacun d'entre eux: 1) Choisis dans la première colonne un des éléments suggérés ou écris ta propre définition; (Indique aussi l'unité, pour faciliter la compréhension) 2) Informe la quantité nécessaire durant le projet; 3) Informe son coût unitaire; 4) La colonne du coût total est calculée automatiquement. Le total des dépenses en infrastructure est calculé automaniquement. | F1: Ce bouton copie le tableau en mémoire, pour l'insérer dans un autre document, par exemple texte.
A3: Elément d'infrastructure (unité) | B3: Quantité | C3: Coût unitaire | D3: Coût total | F3: Exemples
D4: =B4*C4 -> 0
D5: =B5*C5 -> 0 | F5: Location / loyer
D6: 0 | F6: Entretien / nettoyage
D7: 0 | F7: Chauffage / électricité
D8: 0 | F8: Maintenance équipements
D9: 0
D10: 0
D11: 0
D12: 0
D13: 0
A14: Total: | D14: =SUM(D4:D13) -> 0

Sheet Fonctionnement
A1: Instructions pour les frais de fonctionnement Ce tableau te permet d'informer jusqu'à 10 de tes principaux frais de fonctionnement, les plus coûteux. Pour chacun d'entre eux: 1) Choisis dans la première colonne un des éléments suggérés ou écris ta propre définition; (Indique aussi l'unité, pour faciliter la compréhension) 2) Informe la quantité nécessaire durant le projet; 3) Informe son coût unitaire; 4) La colonne du coût total est calculée automatiquement. Le total des dépenses en fonctionnement est calculé automatiquement. | F1: Ce bouton copie le tableau en mémoire, pour l'insérer dans un autre document, par exemple texte.
A3: Frais de fonctionnement (unité) | B3: Quantité | C3: Coût unitaire | D3: Coût total | F3: Exemples
D4: =B4*C4 -> 0
D5: =B5*C5 -> 0 | F5: Courrier
D6: 0 | F6: Téléphone (abo)
D7: 0 | F7: Papier
D8: 0 | F8: Encre imprimante
D9: 0 | F9: Stockage d'informations
D10: 0 | F10: Lanches et café
D11: 0
D12: 0
D13: 0
A14: Total: | D14: =SUM(D4:D13) -> 0

Sheet Transports
A1: Instructions pour les frais de transports Ce tableau te permet d'informer jusqu'à 10 de tes principaux frais de transports, les plus coûteux. Pour chacun d'entre eux: 1) Choisis dans la première colonne un des éléments suggérés ou écris ta propre définition; (Indique aussi l'unité, pour faciliter la compréhension) 2) Informe la quantité nécessaire durant le projet; 3) Informe son coût unitaire; 4) La colonne du coût total est calculée automatiquement. Le total des dépenses en transports est calculé automatiquement. | F1: Ce bouton copie le tableau en mémoire, pour l'insérer dans un autre document, par exemple texte.
A3: Frais de transports (unité) | B3: Quantité | C3: Coût unitaire | D3: Coût total | F3: Exemples
D4: =B4*C4 -> 0
D5: =B5*C5 -> 0 | F5: Voyages
D6: 0 | F6: Km voiture
D7: 0 | F7: Essence
D8: 0 | F8: Train / bus
D9: 0 | F9: Taxi
D10: 0 | F10: Services logistiques (tiers)
D11: 0
D12: 0
D13: 0
A14: Total: | D14: =SUM(D4:D13) -> 0

Sheet Communication
A1: Instructions pour les coûts de communication Ce tableau te permet d'informer jusqu'à 10 de tes principaux éléments de communication, les plus coûteux. Pour chacun d'entre eux: 1) Choisis dans la première colonne un des éléments suggérés ou écris ta propre définition; (Indique aussi l'unité, pour faciliter la compréhension) 2) Informe la quantité nécessaire durant le projet; 3) Informe son coût unitaire; 4) La colonne du coût total est calculée automatiquement. Le total des dépenses en communication est calculé automatiquement. | F1: Ce bouton copie le tableau en mémoire, pour l'insérer dans un autre document, par exemple texte.
A3: Elément de communication (unité) | B3: Quantité | C3: Coût unitaire | D3: Coût total | F3: Exemples
D4: =B4*C4 -> 0
D5: =B5*C5 -> 0 | F5: Affiches
D6: 0 | F6: Brochures
D7: 0 | F7: Dépliants
D8: 0 | F8: Annonces presse
D9: 0 | F9: Annonces WEB
D10: 0 | F10: Publicité WEB
D11: 0 | F11: Site internet
D12: 0 | F12: Charte graphique
D13: 0 | F13: Services de tiers
A14: Total: | D14: =SUM(D4:D13) -> 0

Sheet Investissements
A1: Instructions pour les investissements Ce tableau te permet d'informer jusqu'à 10 de tes principaux investissements, les plus coûteux. Pour chacun d'entre eux: 1) Choisis dans la première colonne un des éléments suggérés ou écris ta propre définition; (Indique aussi l'unité, pour faciliter la compréhension) 2) Informe la quantité nécessaire durant le projet; 3) Informe son coût unitaire; 4) La colonne du coût total est calculée automatiquement. Le total des dépenses en transports est calculé automatiquement. | F1: Ce bouton copie le tableau en mémoire, pour l'insérer dans un autre document, par exemple texte.
A3: Investissement (unité) | B3: Quantité | C3: Coût unitaire | D3: Coût total | F3: Exemples
D4: =B4*C4 -> 0
D5: =B5*C5 -> 0 | F5: Ordinateurs
D6: 0 | F6: Imprimantes
D7: 0 | F7: Réseau interne, Wifi
D8: 0 | F8: Véhicules
D9: 0 | F9: Machines
D10: 0 | F10: Mobilier
D11: 0
D12: 0
D13: 0
A14: Total: | D14: =SUM(D4:D13) -> 0

Sheet Financement
A1: Instructions pour le financement Ce tableau te permet d'informer jusqu'à 10 de tes principaux éléments de financement, les plus élevés, incluant les fonds propres, les subventions, etc. Pour chacun d'entre eux: 1) Choisis dans la première colonne un des éléments suggérés ou écris ta propre définition; 2) Informe sa valeur; Le total des ressources de financement est calculé automatiquement. * Le bénévolat peut être valorisé comme une dépense dans les frais de personnel et équilibré par un même montant dans le financement. Le calcul vient de l'onglet "Personnel". | F1: Ce bouton copie le tableau en mémoire, pour l'insérer dans un autre document, par exemple texte.
A3: Elément de financement | D3: Valeur | F3: Exemples
F5: Fonds propres
F6: Dons
F7: Legs
F8: Contre-prestations
F9: Cotisations
F10: Prix / concours
F11: Sponsors
F12: Subventions
A13: Heures de bénévolat* | D13: =Personnel!D13 -> 0
A14: Total: | D14: =SUM(D4:D13) -> 0

Sheet Résumé
A1: Résumé du projet Le tableau ci-dessous te montre une synthèse des totaux des tableaux dans les onglets antérieurs: 1) La marge brute est la différence entre les recettes et les coûts de production (ou achat) des prestations produites et vendues. 2) Le total des charges opérationnelles est la somme totaux des tableaux des onglets antérieurs liées aux dépenses dites "fixes" 3) Les investissements et les financements sont aussi pris en compte pour évaluer la trésorerie finale du projet
A3: Prestations
A4: Recettes variables des prestations | B4: =Recettes!D14 -> 0
A5: Coûts variables des prestations | B5: =Recettes!D27 -> 0
A6: Marge brute | B6: =B4-B5 -> 0
A8: Charges opérationnelles
A9: Frais de personnel (y compris les heures de bénévolat*) | B9: =Personnel!D14 -> 0
A10: Charges d'infrastructure | B10: =Infrastructure!D14 -> 0
A11: Frais de fonctionnement | B11: =Fonctionnement!D14 -> 0
A12: Frais de transports | B12: =Transports!D14 -> 0
A13: Frais de communication | B13: =Communication!D14 -> 0
A14: Total des charges opérationnelles | B14: =-SUM(B9:B13) -> 0
A16: Marge nette (marge brute - charges opérationnelles) | B16: =B6+B14 -> 0
A18: Investissements | B18: =Investissements!D14 -> 0
A19: Financements (y compris les heures de bénévolat*) | B19: =Financement!D14 -> 0
A21: Trésorerie (cash flow) | B21: =B6+B14-B18+B19 -> 0

Sheet Projections An 1
A1: Instructions Ce tableau est construit à partir des informations des tableaux antérieurs, des recettes au financement. Tote modification du "Projet pilote" doivent être faite dans les onglets antérieurs. Ensuite il faut actualiser le tableau avec le bouton "Rafraichir..."; les lignes vides sont automatiquement masquées. 1) Prestations: des volumes doivent être informés; recettes et coûts sont calculés 2) Personnel: des quantités doivent être informées; les frais sont calculés 3) Charges fixes: des valeurs financières doivent être informées 4) Investissements: des valeurs financières doivent être informées | G1: Le bouton "Copie le tableau" permet ensuite de le coller dans un nouvel onglet, par exemple pour une 2ème année de projections ou de le coller dans un document texte.
B3: Projet pilote | F3: Organisation ou répétition du projet durant la 1ère année
A4: Prestations et leurs volumes | B4: Prix Unit. | C4: Coût Unit. | D4: Qté Initiale | E4: Prestations | F4: Mois 1 | G4: Mois 2 | H4: Mois 3 | I4: Mois 4 | J4: Mois 5 | K4: Mois 6 | L4: Mois 7 | M4: Mois 8 | N4: Mois 9 | O4: Mois 10 | P4: Mois 11 | Q4: Mois 12 | R4: Total année
A5: =IF(Recettes!A4="","",Recettes!A4) ->  | B5: =Recettes!C4 -> 0 | C5: =-Recettes!C17 -> 0 | D5: =Recettes!B4 -> 0 | I5: 350 | L5: 400 | O5: 450 | R5: =SUM(F5:Q5) -> 1200
A6: =IF(Recettes!A5="","",Recettes!A5) ->  | B6: =Recettes!C5 -> 0 | C6: =-Recettes!C18 -> 0 | D6: =Recettes!B5 -> 0 | I6: 150 | L6: 150 | O6: 150 | R6: 450
A7: =IF(Recettes!A6="","",Recettes!A6) ->  | B7: =Recettes!C6 -> 0 | C7: =-Recettes!C19 -> 0 | D7: =Recettes!B6 -> 0 | I7: 600 | L7: 700 | O7: 900 | R7: 2200
A8: =IF(Recettes!A7="","",Recettes!A7) ->  | B8: =Recettes!C7 -> 0 | C8: =-Recettes!C20 -> 0 | D8: =Recettes!B7 -> 0 | I8: 250 | L8: 300 | O8: 350 | R8: 900
A9: =IF(Recettes!A8="","",Recettes!A8) ->  | B9: =Recettes!C8 -> 0 | C9: =-Recettes!C21 -> 0 | D9: =Recettes!B8 -> 0 | I9: 60 | L9: 80 | O9: 100 | R9: 240
A10: =IF(Recettes!A9="","",Recettes!A9) ->  | B10: =Recettes!C9 -> 0 | C10: =-Recettes!C22 -> 0 | D10: =Recettes!B9 -> 0 | R10: 0
A11: =IF(Recettes!A10="","",Recettes!A10) ->  | B11: =Recettes!C10 -> 0 | C11: =-Recettes!C23 -> 0 | D11: =Recettes!B10 -> 0 | R11: 0
A12: =IF(Recettes!A11="","",Recettes!A11) ->  | B12: =Recettes!C11 -> 0 | C12: =-Recettes!C24 -> 0 | D12: =Recettes!B11 -> 0 | R12: 0
A13: =IF(Recettes!A12="","",Recettes!A12) ->  | B13: =Recettes!C12 -> 0 | C13: =-Recettes!C25 -> 0 | D13: =Recettes!B12 -> 0 | R13: 0
A14: =IF(Recettes!A13="","",Recettes!A13) ->  | B14: =Recettes!C13 -> 0 | C14: =-Recettes!C26 -> 0 | D14: =Recettes!B13 -> 0 | R14: 0
A16: Recettes (variables)
A17: Prestation | D17: Val. Initiale | E17: Recettes | F17: Mois 1 | G17: Mois 2 | H17: Mois 3 | I17: Mois 4 | J17: Mois 5 | K17: Mois 6 | L17: Mois 7 | M17: Mois 8 | N17: Mois 9 | O17: Mois 10 | P17: Mois 11 | Q17: Mois 12 | R17: Total année
A18: =IF(Recettes!A4="","",Recettes!A4) ->  | D18: =D5*B5 -> 0 | F18: =F5*$B5 -> 0 | G18: =G5*$B5 -> 0 | H18: 0 | I18: 0 | J18: 0 | K18: 0 | L18: 0 | M18: 0 | N18: 0 | O18: 0 | P18: 0 | Q18: 0 | R18: =SUM(F18:Q18) -> 0
A19: =IF(Recettes!A5="","",Recettes!A5) ->  | D19: 0 | F19: 0 | G19: =G6*$B6 -> 0 | H19: 0 | I19: 0 | J19: 0 | K19: 0 | L19: 0 | M19: 0 | N19: 0 | O19: 0 | P19: 0 | Q19: 0 | R19: 0
A20: =IF(Recettes!A6="","",Recettes!A6) ->  | D20: 0 | F20: 0 | G20: =G7*$B7 -> 0 | H20: 0 | I20: 0 | J20: 0 | K20: 0 | L20: 0 | M20: 0 | N20: 0 | O20: 0 | P20: 0 | Q20: 0 | R20: 0
A21: =IF(Recettes!A7="","",Recettes!A7) ->  | D21: 0 | F21: 0 | G21: =G8*$B8 -> 0 | H21: 0 | I21: 0 | J21: 0 | K21: 0 | L21: 0 | M21: 0 | N21: 0 | O21: 0 | P21: 0 | Q21: 0 | R21: 0
A22: =IF(Recettes!A8="","",Recettes!A8) ->  | D22: 0 | F22: 0 | G22: =G9*$B9 -> 0 | H22: 0 | I22: 0 | J22: 0 | K22: 0 | L22: 0 | M22: 0 | N22: 0 | O22: 0 | P22: 0 | Q22: 0 | R22: 0
A23: =IF(Recettes!A9="","",Recettes!A9) ->  | D23: 0 | F23: 0 | G23: =G10*$B10 -> 0 | H23: 0 | I23: 0 | J23: 0 | K23: 0 | L23: 0 | M23: 0 | N23: 0 | O23: 0 | P23: 0 | Q23: 0 | R23: 0
A24: =IF(Recettes!A10="","",Recettes!A10) ->  | D24: 0 | F24: 0 | G24: =G11*$B11 -> 0 | H24: 0 | I24: 0 | J24: 0 | K24: 0 | L24: 0 | M24: 0 | N24: 0 | O24: 0 | P24: 0 | Q24: 0 | R24: 0
A25: =IF(Recettes!A11="","",Recettes!A11) ->  | D25: 0 | F25: 0 | G25: =G12*$B12 -> 0 | H25: 0 | I25: 0 | J25: 0 | K25: 0 | L25: 0 | M25: 0 | N25: 0 | O25: 0 | P25: 0 | Q25: 0 | R25: 0
A26: =IF(Recettes!A12="","",Recettes!A12) ->  | D26: 0 | F26: 0 | G26: =G13*$B13 -> 0 | H26: 0 | I26: 0 | J26: 0 | K26: 0 | L26: 0 | M26: 0 | N26: 0 | O26: 0 | P26: 0 | Q26: 0 | R26: 0
A27: =IF(Recettes!A13="","",Recettes!A13) ->  | D27: 0 | F27: 0 | G27: =G14*$B14 -> 0 | H27: 0 | I27: 0 | J27: 0 | K27: 0 | L27: 0 | M27: 0 | N27: 0 | O27: 0 | P27: 0 | Q27: 0 | R27: 0
A28: Totaux: | D28: =SUM(D18:D27) -> 0 | F28: 0 | G28: 0 | H28: 0 | I28: 0 | J28: 0 | K28: 0 | L28: 0 | M28: 0 | N28: 0 | O28: 0 | P28: 0 | Q28: 0 | R28: 0
A30: Coûts (variables)
A31: Prestation | D31: Val. Initiale | E31: Coûts variables | F31: Mois 1 | G31: Mois 2 | H31: Mois 3 | I31: Mois 4 | J31: Mois 5 | K31: Mois 6 | L31: Mois 7 | M31: Mois 8 | N31: Mois 9 | O31: Mois 10 | P31: Mois 11 | Q31: Mois 12 | R31: Total année
A32: =IF(Recettes!A4="","",Recettes!A4) ->  | D32: =D5*C5 -> 0 | F32: =F5*$C5 -> 0 | G32: =G5*$C5 -> 0 | H32: 0 | I32: 0 | J32: 0 | K32: 0 | L32: 0 | M32: 0 | N32: 0 | O32: 0 | P32: 0 | Q32: 0 | R32: =SUM(F32:Q32) -> 0
A33: =IF(Recettes!A5="","",Recettes!A5) ->  | D33: =D6*C6 -> 0 | F33: =F6*$C6 -> 0 | G33: 0 | H33: 0 | I33: 0 | J33: 0 | K33: 0 | L33: 0 | M33: 0 | N33: 0 | O33: 0 | P33: 0 | Q33: 0 | R33: 0
A34: =IF(Recettes!A6="","",Recettes!A6) ->  | D34: 0 | F34: =F7*$C7 -> 0 | G34: 0 | H34: 0 | I34: 0 | J34: 0 | K34: 0 | L34: 0 | M34: 0 | N34: 0 | O34: 0 | P34: 0 | Q34: 0 | R34: 0
A35: =IF(Recettes!A7="","",Recettes!A7) ->  | D35: 0 | F35: =F8*$C8 -> 0 | G35: 0 | H35: 0 | I35: 0 | J35: 0 | K35: 0 | L35: 0 | M35: 0 | N35: 0 | O35: 0 | P35: 0 | Q35: 0 | R35: 0
A36: =IF(Recettes!A8="","",Recettes!A8) ->  | D36: 0 | F36: =F9*$C9 -> 0 | G36: 0 | H36: 0 | I36: 0 | J36: 0 | K36: 0 | L36: 0 | M36: 0 | N36: 0 | O36: 0 | P36: 0 | Q36: 0 | R36: 0
A37: =IF(Recettes!A9="","",Recettes!A9) ->  | D37: 0 | F37: =F10*$C10 -> 0 | G37: 0 | H37: 0 | I37: 0 | J37: 0 | K37: 0 | L37: 0 | M37: 0 | N37: 0 | O37: 0 | P37: 0 | Q37: 0 | R37: 0
A38: =IF(Recettes!A10="","",Recettes!A10) ->  | D38: 0 | F38: =F11*$C11 -> 0 | G38: 0 | H38: 0 | I38: 0 | J38: 0 | K38: 0 | L38: 0 | M38: 0 | N38: 0 | O38: 0 | P38: 0 | Q38: 0 | R38: 0
A39: =IF(Recettes!A11="","",Recettes!A11) ->  | D39: 0 | F39: =F12*$C12 -> 0 | G39: 0 | H39: 0 | I39: 0 | J39: 0 | K39: 0 | L39: 0 | M39: 0 | N39: 0 | O39: 0 | P39: 0 | Q39: 0 | R39: 0
A40: =IF(Recettes!A12="","",Recettes!A12) ->  | D40: 0 | F40: =F13*$C13 -> 0 | G40: 0 | H40: 0 | I40: 0 | J40: 0 | K40: 0 | L40: 0 | M40: 0 | N40: 0 | O40: 0 | P40: 0 | Q40: 0 | R40: 0
A41: =IF(Recettes!A13="","",Recettes!A13) ->  | D41: 0 | F41: =F14*$C14 -> 0 | G41: 0 | H41: 0 | I41: 0 | J41: 0 | K41: 0 | L41: 0 | M41: 0 | N41: 0 | O41: 0 | P41: 0 | Q41: 0 | R41: 0
A42: Totaux: | D42: =SUM(D32:D41) -> 0 | F42: 0 | G42: 0 | H42: 0 | I42: 0 | J42: 0 | K42: 0 | L42: 0 | M42: 0 | N42: 0 | O42: 0 | P42: 0 | Q42: 0 | R42: 0
A44: Marge brute | D44: =D28+D42 -> 0 | F44: 0 | G44: 0 | H44: 0 | I44: 0 | J44: 0 | K44: 0 | L44: 0 | M44: 0 | N44: 0 | O44: 0 | P44: 0 | Q44: 0 | R44: 0
A46: Frais de personnel
A47: Eléments | C47: Coût Unit. | D47: Qté Initiale | E47: Personnel | F47: Mois 1 | G47: Mois 2 | H47: Mois 3 | I47: Mois 4 | J47: Mois 5 | K47: Mois 6 | L47: Mois 7 | M47: Mois 8 | N47: Mois 9 | O47: Mois 10 | P47: Mois 11 | Q47: Mois 12 | R47: Total année
A48: =IF(Personnel!A4="","",Personnel!A4) ->  | C48: =IF(Personnel!C4="",0,-Personnel!C4) -> 0 | D48: =Personnel!B4 -> 0 | F48: 0.1 | G48: 0.1 | H48: 0.1 | I48: 0.2 | J48: 0.1 | K48: 0.1 | L48: 0.2 | M48: 0.1 | N48: 0.1 | O48: 0.2 | P48: 0.1 | Q48: 0.1 | R48: =SUM(F48:Q48) -> 1.5
A49: =IF(Personnel!A5="","",Personnel!A5) ->  | C49: =IF(Personnel!C5="",0,-Personnel!C5) -> 0 | D49: =Personnel!B5 -> 0 | F49: 10 | G49: 10 | H49: 10 | I49: 10 | J49: 10 | K49: 10 | L49: 10 | M49: 10 | N49: 10 | O49: 10 | P49: 10 | Q49: 10 | R49: 120
A50: =IF(Personnel!A6="","",Personnel!A6) ->  | C50: =IF(Personnel!C6="",0,-Personnel!C6) -> 0 | D50: =Personnel!B6 -> 0 | I50: 50 | L50: 80 | O50: 100 | R50: 230
A51: =IF(Personnel!A7="","",Personnel!A7) ->  | C51: =IF(Personnel!C7="",0,-Personnel!C7) -> 0 | D51: =Personnel!B7 -> 0 | R51: 0
A52: =IF(Personnel!A8="","",Personnel!A8) ->  | C52: =IF(Personnel!C8="",0,-Personnel!C8) -> 0 | D52: =Personnel!B8 -> 0 | R52: 0
A53: =IF(Personnel!A9="","",Personnel!A9) ->  | C53: =IF(Personnel!C9="",0,-Personnel!C9) -> 0 | D53: =Personnel!B9 -> 0 | R53: 0
A54: =IF(Personnel!A10="","",Personnel!A10) ->  | C54: =IF(Personnel!C10="",0,-Personnel!C10) -> 0 | D54: =Personnel!B10 -> 0 | R54: 0
A55: =IF(Personnel!A11="","",Personnel!A11) ->  | C55: =IF(Personnel!C11="",0,-Personnel!C11) -> 0 | D55: =Personnel!B11 -> 0 | R55: 0
A56: =IF(Personnel!A12="","",Personnel!A12) ->  | C56: =IF(Personnel!C12="",0,-Personnel!C12) -> 0 | D56: =Personnel!B12 -> 0 | R56: 0
A57: =IF(Personnel!A13="","",Personnel!A13) -> Heures de bénévolat* | C57: =IF(Personnel!C13="",0,-Personnel!C13) -> 0 | D57: 100 | F57: 30 | G57: 30 | H57: 30 | I57: 200 | J57: 30 | K57: 30 | L57: 300 | M57: 30 | N57: 30 | O57: 300 | P57: 30 | Q57: 30 | R57: 1070
A59: Frais | D59: Val. Initiale | E59: Personnel | F59: Mois 1 | G59: Mois 2 | H59: Mois 3 | I59: Mois 4 | J59: Mois 5 | K59: Mois 6 | L59: Mois 7 | M59: Mois 8 | N59: Mois 9 | O59: Mois 10 | P59: Mois 11 | Q59: Mois 12 | R59: Total année
A60: =A48 ->  | D60: =D48*C48 -> 0 | F60: =F48*$C48 -> 0 | G60: =G48*$C48 -> 0 | H60: 0 | I60: 0 | J60: 0 | K60: 0 | L60: 0 | M60: 0 | N60: 0 | O60: 0 | P60: 0 | Q60: 0 | R60: =SUM(F60:Q60) -> 0
D61: =D49*C49 -> 0 | F61: =F49*$C49 -> 0 | G61: 0 | H61: 0 | I61: 0 | J61: 0 | K61: 0 | L61: 0 | M61: 0 | N61: 0 | O61: 0 | P61: 0 | Q61: 0 | R61: 0
D62: 0 | F62: =F50*$C50 -> 0 | G62: 0 | H62: 0 | I62: 0 | J62: 0 | K62: 0 | L62: 0 | M62: 0 | N62: 0 | O62: 0 | P62: 0 | Q62: 0 | R62: 0
D63: 0 | F63: =F51*$C51 -> 0 | G63: 0 | H63: 0 | I63: 0 | J63: 0 | K63: 0 | L63: 0 | M63: 0 | N63: 0 | O63: 0 | P63: 0 | Q63: 0 | R63: 0
D64: 0 | F64: =F52*$C52 -> 0 | G64: 0 | H64: 0 | I64: 0 | J64: 0 | K64: 0 | L64: 0 | M64: 0 | N64: 0 | O64: 0 | P64: 0 | Q64: 0 | R64: 0
D65: 0 | F65: =F53*$C53 -> 0 | G65: 0 | H65: 0 | I65: 0 | J65: 0 | K65: 0 | L65: 0 | M65: 0 | N65: 0 | O65: 0 | P65: 0 | Q65: 0 | R65: 0
D66: 0 | F66: =F54*$C54 -> 0 | G66: 0 | H66: 0 | I66: 0 | J66: 0 | K66: 0 | L66: 0 | M66: 0 | N66: 0 | O66: 0 | P66: 0 | Q66: 0 | R66: 0
D67: 0 | F67: =F55*$C55 -> 0 | G67: 0 | H67: 0 | I67: 0 | J67: 0 | K67: 0 | L67: 0 | M67: 0 | N67: 0 | O67: 0 | P67: 0 | Q67: 0 | R67: 0
D68: 0 | F68: =F56*$C56 -> 0 | G68: 0 | H68: 0 | I68: 0 | J68: 0 | K68: 0 | L68: 0 | M68: 0 | N68: 0 | O68: 0 | P68: 0 | Q68: 0 | R68: 0
A69: Heures de bénévolat* | D69: 0 | F69: =F57*$C57 -> 0 | G69: 0 | H69: 0 | I69: 0 | J69: 0 | K69: 0 | L69: 0 | M69: 0 | N69: 0 | O69: 0 | P69: 0 | Q69: 0 | R69: 0
A70: Totaux: | D70: =SUM(D60:D69) -> 0 | F70: 0 | G70: 0 | H70: 0 | I70: 0 | J70: 0 | K70: 0 | L70: 0 | M70: 0 | N70: 0 | O70: 0 | P70: 0 | Q70: 0 | R70: 0
A72: Charges fixes
A73: Elément | B73: Unités | C73: Coût Unit. | D73: Coût Initial | F73: Mois 1 | G73: Mois 2 | H73: Mois 3 | I73: Mois 4 | J73: Mois 5 | K73: Mois 6 | L73: Mois 7 | M73: Mois 8 | N73: Mois 9 | O73: Mois 10 | P73: Mois 11 | Q73: Mois 12 | R73: Total année
A74: =IF(Infrastructure!A4="","",Infrastructure!A4) ->  | B74: =IF(Infrastructure!A4="",0,Infrastructure!B4) -> 0 | C74: =IF(Infrastructure!A4="",0,-Infrastructure!C4) -> 0 | D74: =IF(Infrastructure!A4="",0,-Infrastructure!D4) -> 0 | E74: Infrastructure | I74: 250 | L74: 250 | O74: 250 | R74: =-SUM(F74:Q74) -> -750
A75: =IF(Infrastructure!A5="","",Infrastructure!A5) ->  | B75: =IF(Infrastructure!A5="",0,Infrastructure!B5) -> 0 | C75: =IF(Infrastructure!A5="",0,-Infrastructure!C5) -> 0 | D75: =IF(Infrastructure!A5="",0,-Infrastructure!D5) -> 0 | F75: 50 | G75: 50 | H75: 50 | I75: 50 | J75: 50 | K75: 50 | L75: 50 | M75: 50 | N75: 50 | O75: 50 | P75: 50 | Q75: 50 | R75: =-SUM(F75:Q75) -> -600
A76: =IF(Infrastructure!A6="","",Infrastructure!A6) ->  | B76: =IF(Infrastructure!A6="",0,Infrastructure!B6) -> 0 | C76: =IF(Infrastructure!A6="",0,-Infrastructure!C6) -> 0 | D76: =IF(Infrastructure!A6="",0,-Infrastructure!D6) -> 0 | F76: 100 | G76: 100 | H76: 100 | I76: 100 | J76: 100 | K76: 100 | L76: 100 | M76: 100 | N76: 100 | O76: 100 | P76: 100 | Q76: 100 | R76: -1200
A77: =IF(Infrastructure!A7="","",Infrastructure!A7) ->  | B77: =IF(Infrastructure!A7="",0,Infrastructure!B7) -> 0 | C77: =IF(Infrastructure!A7="",0,-Infrastructure!C7) -> 0 | D77: =IF(Infrastructure!A7="",0,-Infrastructure!D7) -> 0 | R77: 0
A78: =IF(Infrastructure!A8="","",Infrastructure!A8) ->  | B78: =IF(Infrastructure!A8="",0,Infrastructure!B8) -> 0 | C78: =IF(Infrastructure!A8="",0,-Infrastructure!C8) -> 0 | D78: =IF(Infrastructure!A8="",0,-Infrastructure!D8) -> 0 | R78: 0
A79: =IF(Infrastructure!A9="","",Infrastructure!A9) ->  | B79: =IF(Infrastructure!A9="",0,Infrastructure!B9) -> 0 | C79: =IF(Infrastructure!A9="",0,-Infrastructure!C9) -> 0 | D79: =IF(Infrastructure!A9="",0,-Infrastructure!D9) -> 0 | R79: 0
A80: =IF(Infrastructure!A10="","",Infrastructure!A10) ->  | B80: =IF(Infrastructure!A10="",0,Infrastructure!B10) -> 0 | C80: =IF(Infrastructure!A10="",0,-Infrastructure!C10) -> 0 | D80: =IF(Infrastructure!A10="",0,-Infrastructure!D10) -> 0 | R80: 0
A81: =IF(Infrastructure!A11="","",Infrastructure!A11) ->  | B81: =IF(Infrastructure!A11="",0,Infrastructure!B11) -> 0 | C81: =IF(Infrastructure!A11="",0,-Infrastructure!C11) -> 0 | D81: =IF(Infrastructure!A11="",0,-Infrastructure!D11) -> 0 | R81: 0
A82: =IF(Infrastructure!A12="","",Infrastructure!A12) ->  | B82: =IF(Infrastructure!A12="",0,Infrastructure!B12) -> 0 | C82: =IF(Infrastructure!A12="",0,-Infrastructure!C12) -> 0 | D82: =IF(Infrastructure!A12="",0,-Infrastructure!D12) -> 0 | R82: 0
A83: =IF(Infrastructure!A13="","",Infrastructure!A13) ->  | B83: =IF(Infrastructure!A13="",0,Infrastructure!B13) -> 0 | C83: =IF(Infrastructure!A13="",0,-Infrastructure!C13) -> 0 | D83: =IF(Infrastructure!A13="",0,-Infrastructure!D13) -> 0 | R83: 0
A84: =IF(Fonctionnement!A4="","",Fonctionnement!A4) ->  | B84: =IF(Fonctionnement!A4="",0,Fonctionnement!B4) -> 0 | C84: =IF(Fonctionnement!A4="",0,-Fonctionnement!C4) -> 0 | D84: =IF(Fonctionnement!A4="",0,-Fonctionnement!D4) -> 0 | E84: Fonctionnement | H84: 200 | K84: 250 | N84: 300 | R84: -750
A85: =IF(Fonctionnement!A5="","",Fonctionnement!A5) ->  | B85: =IF(Fonctionnement!A5="",0,Fonctionnement!B5) -> 0 | C85: =IF(Fonctionnement!A5="",0,-Fonctionnement!C5) -> 0 | D85: =IF(Fonctionnement!A5="",0,-Fonctionnement!D5) -> 0 | F85: 60 | G85: 60 | H85: 60 | I85: 60 | J85: 60 | K85: 60 | L85: 60 | M85: 60 | N85: 60 | O85: 60 | P85: 60 | Q85: 60 | R85: -720
A86: =IF(Fonctionnement!A6="","",Fonctionnement!A6) ->  | B86: =IF(Fonctionnement!A6="",0,Fonctionnement!B6) -> 0 | C86: =IF(Fonctionnement!A6="",0,-Fonctionnement!C6) -> 0 | D86: =IF(Fonctionnement!A6="",0,-Fonctionnement!D6) -> 0 | F86: 12 | G86: 12 | H86: 100 | I86: 12 | J86: 12 | K86: 100 | L86: 12 | M86: 12 | N86: 100 | O86: 12 | P86: 12 | Q86: 12 | R86: -408
A87: =IF(Fonctionnement!A7="","",Fonctionnement!A7) ->  | B87: =IF(Fonctionnement!A7="",0,Fonctionnement!B7) -> 0 | C87: =IF(Fonctionnement!A7="",0,-Fonctionnement!C7) -> 0 | D87: =IF(Fonctionnement!A7="",0,-Fonctionnement!D7) -> 0 | I87: 200 | L87: 300 | O87: 400 | R87: -900
A88: =IF(Fonctionnement!A8="","",Fonctionnement!A8) ->  | B88: =IF(Fonctionnement!A8="",0,Fonctionnement!B8) -> 0 | C88: =IF(Fonctionnement!A8="",0,-Fonctionnement!C8) -> 0 | D88: =IF(Fonctionnement!A8="",0,-Fonctionnement!D8) -> 0 | R88: 0
A89: =IF(Fonctionnement!A9="","",Fonctionnement!A9) ->  | B89: =IF(Fonctionnement!A9="",0,Fonctionnement!B9) -> 0 | C89: =IF(Fonctionnement!A9="",0,-Fonctionnement!C9) -> 0 | D89: =IF(Fonctionnement!A9="",0,-Fonctionnement!D9) -> 0 | R89: 0
A90: =IF(Fonctionnement!A10="","",Fonctionnement!A10) ->  | B90: =IF(Fonctionnement!A10="",0,Fonctionnement!B10) -> 0 | C90: =IF(Fonctionnement!A10="",0,-Fonctionnement!C10) -> 0 | D90: =IF(Fonctionnement!A10="",0,-Fonctionnement!D10) -> 0 | R90: 0
A91: =IF(Fonctionnement!A11="","",Fonctionnement!A11) ->  | B91: =IF(Fonctionnement!A11="",0,Fonctionnement!B11) -> 0 | C91: =IF(Fonctionnement!A11="",0,-Fonctionnement!C11) -> 0 | D91: =IF(Fonctionnement!A11="",0,-Fonctionnement!D11) -> 0 | R91: 0
A92: =IF(Fonctionnement!A12="","",Fonctionnement!A12) ->  | B92: =IF(Fonctionnement!A12="",0,Fonctionnement!B12) -> 0 | C92: =IF(Fonctionnement!A12="",0,-Fonctionnement!C12) -> 0 | D92: =IF(Fonctionnement!A12="",0,-Fonctionnement!D12) -> 0 | R92: 0
A93: =IF(Fonctionnement!A13="","",Fonctionnement!A13) ->  | B93: =IF(Fonctionnement!A13="",0,Fonctionnement!B13) -> 0 | C93: =IF(Fonctionnement!A13="",0,-Fonctionnement!C13) -> 0 | D93: =IF(Fonctionnement!A13="",0,-Fonctionnement!D13) -> 0 | R93: 0
A94: =IF(Transports!A4="","",Transports!A4) ->  | B94: =IF(Transports!A4="",0,Transports!B4) -> 0 | C94: =IF(Transports!A4="",0,-Transports!C4) -> 0 | D94: =IF(Transports!A4="",0,-Transports!D4) -> 0 | E94: Transports | F94: 35 | G94: 35 | H94: 35 | I94: 35 | J94: 35 | K94: 35 | L94: 35 | M94: 35 | N94: 35 | O94: 35 | P94: 35 | Q94: 35 | R94: -420
A95: =IF(Transports!A5="","",Transports!A5) ->  | B95: =IF(Transports!A5="",0,Transports!B5) -> 0 | C95: =IF(Transports!A5="",0,-Transports!C5) -> 0 | D95: =IF(Transports!A5="",0,-Transports!D5) -> 0 | F95: 100 | G95: 100 | H95: 100 | I95: 200 | J95: 100 | K95: 100 | L95: 200 | M95: 100 | N95: 100 | O95: 200 | P95: 100 | Q95: 100 | R95: -1500
A96: =IF(Transports!A6="","",Transports!A6) ->  | B96: =IF(Transports!A6="",0,Transports!B6) -> 0 | C96: =IF(Transports!A6="",0,-Transports!C6) -> 0 | D96: =IF(Transports!A6="",0,-Transports!D6) -> 0 | F96: 60 | G96: 60 | H96: 120 | I96: 60 | J96: 60 | K96: 120 | L96: 60 | M96: 60 | N96: 120 | O96: 60 | P96: 60 | Q96: 120 | R96: -960
A97: =IF(Transports!A7="","",Transports!A7) ->  | B97: =IF(Transports!A7="",0,Transports!B7) -> 0 | C97: =IF(Transports!A7="",0,-Transports!C7) -> 0 | D97: =IF(Transports!A7="",0,-Transports!D7) -> 0 | R97: 0
A98: =IF(Transports!A8="","",Transports!A8) ->  | B98: =IF(Transports!A8="",0,Transports!B8) -> 0 | C98: =IF(Transports!A8="",0,-Transports!C8) -> 0 | D98: =IF(Transports!A8="",0,-Transports!D8) -> 0 | R98: 0
A99: =IF(Transports!A9="","",Transports!A9) ->  | B99: =IF(Transports!A9="",0,Transports!B9) -> 0 | C99: =IF(Transports!A9="",0,-Transports!C9) -> 0 | D99: =IF(Transports!A9="",0,-Transports!D9) -> 0 | R99: 0
A100: =IF(Transports!A10="","",Transports!A10) ->  | B100: =IF(Transports!A10="",0,Transports!B10) -> 0 | C100: =IF(Transports!A10="",0,-Transports!C10) -> 0 | D100: =IF(Transports!A10="",0,-Transports!D10) -> 0 | R100: 0
A101: =IF(Transports!A11="","",Transports!A11) ->  | B101: =IF(Transports!A11="",0,Transports!B11) -> 0 | C101: =IF(Transports!A11="",0,-Transports!C11) -> 0 | D101: =IF(Transports!A11="",0,-Transports!D11) -> 0 | R101: 0
A102: =IF(Transports!A12="","",Transports!A12) ->  | B102: =IF(Transports!A12="",0,Transports!B12) -> 0 | C102: =IF(Transports!A12="",0,-Transports!C12) -> 0 | D102: =IF(Transports!A12="",0,-Transports!D12) -> 0 | R102: 0
A103: =IF(Transports!A13="","",Transports!A13) ->  | B103: =IF(Transports!A13="",0,Transports!B13) -> 0 | C103: =IF(Transports!A13="",0,-Transports!C13) -> 0 | D103: =IF(Transports!A13="",0,-Transports!D13) -> 0 | R103: 0
A104: =IF(Communication!A4="","",Communication!A4) ->  | B104: =IF(Communication!A4="",0,Communication!B4) -> 0 | C104: =IF(Communication!A4="",0,-Communication!C4) -> 0 | D104: =IF(Communication!A4="",0,-Communication!D4) -> 0 | E104: Communication | R104: 0
A105: =IF(Communication!A5="","",Communication!A5) ->  | B105: =IF(Communication!A5="",0,Communication!B5) -> 0 | C105: =IF(Communication!A5="",0,-Communication!C5) -> 0 | D105: =IF(Communication!A5="",0,-Communication!D5) -> 0 | R105: 0
A106: =IF(Communication!A6="","",Communication!A6) ->  | B106: =IF(Communication!A6="",0,Communication!B6) -> 0 | C106: =IF(Communication!A6="",0,-Communication!C6) -> 0 | D106: =IF(Communication!A6="",0,-Communication!D6) -> 0 | R106: 0
A107: =IF(Communication!A7="","",Communication!A7) ->  | B107: =IF(Communication!A7="",0,Communication!B7) -> 0 | C107: =IF(Communication!A7="",0,-Communication!C7) -> 0 | D107: =IF(Communication!A7="",0,-Communication!D7) -> 0 | R107: 0
A108: =IF(Communication!A8="","",Communication!A8) ->  | B108: =IF(Communication!A8="",0,Communication!B8) -> 0 | C108: =IF(Communication!A8="",0,-Communication!C8) -> 0 | D108: =IF(Communication!A8="",0,-Communication!D8) -> 0 | R108: 0
A109: =IF(Communication!A9="","",Communication!A9) ->  | B109: =IF(Communication!A9="",0,Communication!B9) -> 0 | C109: =IF(Communication!A9="",0,-Communication!C9) -> 0 | D109: =IF(Communication!A9="",0,-Communication!D9) -> 0 | R109: 0
A110: =IF(Communication!A10="","",Communication!A10) ->  | B110: =IF(Communication!A10="",0,Communication!B10) -> 0 | C110: =IF(Communication!A10="",0,-Communication!C10) -> 0 | D110: =IF(Communication!A10="",0,-Communication!D10) -> 0 | R110: 0
A111: =IF(Communication!A11="","",Communication!A11) ->  | B111: =IF(Communication!A11="",0,Communication!B11) -> 0 | C111: =IF(Communication!A11="",0,-Communication!C11) -> 0 | D111: =IF(Communication!A11="",0,-Communication!D11) -> 0 | R111: 0
A112: =IF(Communication!A12="","",Communication!A12) ->  | B112: =IF(Communication!A12="",0,Communication!B12) -> 0 | C112: =IF(Communication!A12="",0,-Communication!C12) -> 0 | D112: =IF(Communication!A12="",0,-Communication!D12) -> 0 | R112: 0
A113: =IF(Communication!A13="","",Communication!A13) ->  | B113: =IF(Communication!A13="",0,Communication!B13) -> 0 | C113: =IF(Communication!A13="",0,-Communication!C13) -> 0 | D113: =IF(Communication!A13="",0,-Communication!D13) -> 0 | R113: 0
A114: Totaux: | D114: =SUM(D74:D113) -> 0 | F114: =-SUM(F74:F113) -> -417 | G114: -417 | H114: -765 | I114: -967 | J114: -417 | K114: -815 | L114: -1067 | M114: -417 | N114: -865 | O114: -1167 | P114: -417 | Q114: -477 | R114: =SUM(F114:Q114) -> -8208
A116: Total des charges opérationnelles | D116: =D70+D114 -> 0 | F116: =F70+F114 -> -417 | G116: -417 | H116: -765 | I116: -967 | J116: -417 | K116: -815 | L116: -1067 | M116: -417 | N116: -865 | O116: -1167 | P116: -417 | Q116: -477 | R116: -8208
A117: Marge nette (marge brute b-charges opérationnelles) | D117: =D44+D116 -> 0 | F117: =F44+F116 -> -417 | G117: -417 | H117: -765 | I117: -967 | J117: -417 | K117: -815 | L117: -1067 | M117: -417 | N117: -865 | O117: -1167 | P117: -417 | Q117: -477 | R117: -8208
A120: Investissements
A121: Elément d'investissement | B121: Unités | C121: Coût Unit. | D121: Coût Initial | E121: Investissements | F121: Mois 1 | G121: Mois 2 | H121: Mois 3 | I121: Mois 4 | J121: Mois 5 | K121: Mois 6 | L121: Mois 7 | M121: Mois 8 | N121: Mois 9 | O121: Mois 10 | P121: Mois 11 | Q121: Mois 12 | R121: Total année
A122: =IF(Investissements!A4="","",Investissements!A4) ->  | B122: =IF(Investissements!A4="",0,Investissements!B4) -> 0 | C122: =IF(Investissements!A4="",0,-Investissements!C4) -> 0 | D122: =IF(Investissements!A4="",0,-Investissements!D4) -> 0 | K122: 2000 | R122: =-SUM(F122:Q122) -> -2000
A123: =IF(Investissements!A5="","",Investissements!A5) ->  | B123: =IF(Investissements!A5="",0,Investissements!B5) -> 0 | C123: =IF(Investissements!A5="",0,-Investissements!C5) -> 0 | D123: =IF(Investissements!A5="",0,-Investissements!D5) -> 0 | R123: =-SUM(F123:Q123) -> 0
A124: =IF(Investissements!A6="","",Investissements!A6) ->  | B124: =IF(Investissements!A6="",0,Investissements!B6) -> 0 | C124: =IF(Investissements!A6="",0,-Investissements!C6) -> 0 | D124: =IF(Investissements!A6="",0,-Investissements!D6) -> 0 | H124: 120 | K124: 120 | N124: 120 | Q124: 120 | R124: -480
A125: =IF(Investissements!A7="","",Investissements!A7) ->  | B125: =IF(Investissements!A7="",0,Investissements!B7) -> 0 | C125: =IF(Investissements!A7="",0,-Investissements!C7) -> 0 | D125: =IF(Investissements!A7="",0,-Investissements!D7) -> 0 | R125: 0
A126: =IF(Investissements!A8="","",Investissements!A8) ->  | B126: =IF(Investissements!A8="",0,Investissements!B8) -> 0 | C126: =IF(Investissements!A8="",0,-Investissements!C8) -> 0 | D126: =IF(Investissements!A8="",0,-Investissements!D8) -> 0 | R126: 0
A127: =IF(Investissements!A9="","",Investissements!A9) ->  | B127: =IF(Investissements!A9="",0,Investissements!B9) -> 0 | C127: =IF(Investissements!A9="",0,-Investissements!C9) -> 0 | D127: =IF(Investissements!A9="",0,-Investissements!D9) -> 0 | R127: 0
A128: =IF(Investissements!A10="","",Investissements!A10) ->  | B128: =IF(Investissements!A10="",0,Investissements!B10) -> 0 | C128: =IF(Investissements!A10="",0,-Investissements!C10) -> 0 | D128: =IF(Investissements!A10="",0,-Investissements!D10) -> 0 | R128: 0
A129: =IF(Investissements!A11="","",Investissements!A11) ->  | B129: =IF(Investissements!A11="",0,Investissements!B11) -> 0 | C129: =IF(Investissements!A11="",0,-Investissements!C11) -> 0 | D129: =IF(Investissements!A11="",0,-Investissements!D11) -> 0 | R129: 0
A130: =IF(Investissements!A12="","",Investissements!A12) ->  | B130: =IF(Investissements!A12="",0,Investissements!B12) -> 0 | C130: =IF(Investissements!A12="",0,-Investissements!C12) -> 0 | D130: =IF(Investissements!A12="",0,-Investissements!D12) -> 0 | R130: 0
A131: =IF(Investissements!A13="","",Investissements!A13) ->  | B131: =IF(Investissements!A13="",0,Investissements!B13) -> 0 | C131: =IF(Investissements!A13="",0,-Investissements!C13) -> 0 | D131: =IF(Investissements!A13="",0,-Investissements!D13) -> 0 | R131: 0
A132: Totaux: | D132: =SUM(D122:D131) -> 0 | F132: =-SUM(F122:F131) -> 0 | G132: 0 | H132: -120 | I132: 0 | J132: 0 | K132: -2120 | L132: 0 | M132: 0 | N132: -120 | O132: 0 | P132: 0 | Q132: -120 | R132: =SUM(F132:Q132) -> -2480
A134: Financement
A135: Eléments de financement | D135: Valeur | E135: Financement | F135: Mois 1 | G135: Mois 2 | H135: Mois 3 | I135: Mois 4 | J135: Mois 5 | K135: Mois 6 | L135: Mois 7 | M135: Mois 8 | N135: Mois 9 | O135: Mois 10 | P135: Mois 11 | Q135: Mois 12 | R135: Total année
A136: =IF(Financement!A4="","",Financement!A4) ->  | D136: =IF(Financement!A4="","",Financement!D4) ->  | R136: =SUM(F136:Q136) -> 0
A137: =IF(Financement!A5="","",Financement!A5) ->  | D137: =IF(Financement!A5="","",Financement!D5) ->  | I137: 500 | L137: 500 | O137: 500 | R137: 1500
A138: =IF(Financement!A6="","",Financement!A6) ->  | D138: =IF(Financement!A6="","",Financement!D6) ->  | I138: 1500 | L138: 2000 | O138: 1000 | R138: 4500
A139: =IF(Financement!A7="","",Financement!A7) ->  | D139: =IF(Financement!A7="","",Financement!D7) ->  | R139: 0
A140: =IF(Financement!A8="","",Financement!A8) ->  | D140: =IF(Financement!A8="","",Financement!D8) ->  | R140: 0
A141: =IF(Financement!A9="","",Financement!A9) ->  | D141: =IF(Financement!A9="","",Financement!D9) ->  | R141: 0
A142: =IF(Financement!A10="","",Financement!A10) ->  | D142: =IF(Financement!A10="","",Financement!D10) ->  | R142: 0
A143: =IF(Financement!A11="","",Financement!A11) ->  | D143: =IF(Financement!A11="","",Financement!D11) ->  | R143: 0
A144: =IF(Financement!A12="","",Financement!A12) ->  | D144: =IF(Financement!A12="","",Financement!D12) ->  | R144: 0
A145: =IF(Financement!A13="","",Financement!A13) -> Heures de bénévolat* | D145: =IF(Financement!A13="","",Financement!D13) -> 0 | F145: =-F69 -> 0 | G145: =-G69 -> 0 | H145: 0 | I145: 0 | J145: 0 | K145: 0 | L145: 0 | M145: 0 | N145: 0 | O145: 0 | P145: 0 | Q145: 0 | R145: 0
A146: Totaux: | D146: =SUM(D136:D145) -> 0 | F146: 0 | G146: 0 | H146: 0 | I146: 2000 | J146: 0 | K146: 0 | L146: 2500 | M146: 0 | N146: 0 | O146: 1500 | P146: 0 | Q146: 0 | R146: 6000
A149: Résultats
A150: Bénéfice/Perte du projet pilote ou mensuel: | D150: =D44+D116+D132+D146 -> 0 | F150: =F44+F116+F132+F146 -> -417 | G150: -417 | H150: -885 | I150: 1033 | J150: -417 | K150: -2935 | L150: 1433 | M150: -417 | N150: -985 | O150: 333 | P150: -417 | Q150: -597 | R150: -4688
A151: Trésorerie (Cash flow): | D151: =D150 -> 0 | F151: =D151+F150 -> -417 | G151: =F151+G150 -> -834 | H151: =G151+H150 -> -1719 | I151: -686 | J151: -1103 | K151: -4038 | L151: -2605 | M151: -3022 | N151: -4007 | O151: -3674 | P151: -4091 | Q151: -4688 | R151: -9376
